[Event "13th Chennai Open 2022"]
[Site "Chennai"]
[Date "2022.06.24"]
[Round "8.1"]
[White "Savchenko, Boris"]
[Black "Nitin, S.."]
[Result "1/2-1/2"]
[ECO "B80"]
[WhiteElo "2524"]
[BlackElo "2399"]
[Annotator "TA"]
[PlyCount "136"]
[EventDate "2022.06.19"]
[EventType "swiss"]
[EventCountry "IND"]
[SourceTitle "playchess.com"]
[Source "ChessBase"]
[SourceQuality "1"]
[TimeControl "5400+30"]

{[%evp 10,136,33,19,22,22,12,0,0,-10,14,0,31,-4,0,0,15,6,8,0,0,0,0,0,0,0,0,0,0,0,-2,-11,0,0,0,0,0,0,0,0,0,0,0,0,0,0,0,0,0,0,0,0,7,0,0,0,0,0,0,0,0,0,0,0,0,-13,0,0,-14,-6,0,-26,0,0,0,0,0,0,0,0,0,0,-11,-1,-11,-29,-22,-25,-23,-37,-31,-22,-8,-30,0,-81,-71,-102,-115,-148,-155,-193,-8,-119,-8,-8,-8,-8,-8,-8,-8,-8,8,8,8,0,8,8,8,8,8,8,8,0,0,-8,-8,-8,-8]} 1. e4 {[%emt 0:11:03]} c5 {[%emt 0:00:33]} 2. Nf3 {[%emt 0:00:56]} d6 {[%emt 0:00:23]} 3. d4 {[%emt 0:00:44]} cxd4 {[%emt 0:00:09]} 4. Nxd4 {[%emt 0:00:31]} Nf6 {[%emt 0:00:20]} 5. Nc3 {[%emt 0:00:10]} e6 {[%emt 0:01:07]} 6. g3 {[%emt 0:02:34]} Be7 {[%emt 0:01:12] B80: Sicilian Scheveningen: 6 g3 and 6 Be3, including English Attack.} 7. Bg2 {[%emt 0:00:07]} O-O {[%emt 0:00:17]} 8. f4 {[%emt 0:05:27]} Nc6 {[%emt 0:03:44]} 9. Nb3 {[%emt 0:01:54] [#]} d5 $146 {[%emt 0:11:45]} ({Predecessor:} 9... Rb8 10. Be3 a6 11. O-O Bd7 12. Kh1 b5 13. Bg1 Qc7 14. a3 Rfd8 15. Qe2 b4 16. axb4 Nxb4 {0-1 (33) Cohen,J (2229)-Demchenko,A (2641) Chess.com INT 2020}) 10. Be3 {[%emt 0:08:58]} (10. exd5 exd5 11. O-O (11. Nxd5 Nxd5 12. Bxd5 Nb4 $17) (11. Bxd5 Nb4 $17) 11... Bg4 $15) 10... a5 {[%emt 0:12:02]} 11. a4 {[%emt 0:29:39]} (11. exd5 exd5 12. a4 (12. Nxd5 a4 $15) 12... Re8 $15) (11. e5 $5 {[%cal Re5f6]}) 11... dxe4 {[%emt 0:12:00]} 12. Nxe4 {[%emt 0:02:59]} Nb4 {[%emt 0:06:21]} 13. Bd4 {[%emt 0:08:23]} Bd7 {[%emt 0:11:50][%cal Bc8d7,Bd7c6,Bc6d5][%mdl 32]} 14. c3 {[%emt 0:02:14]} Nxe4 {[%emt 0:06:12]} 15. Bxe4 {[%emt 0:00:53]} Bc6 {[%emt 0:00:46]} 16. Qb1 {[%emt 0:00:09]} Bd5 {[%emt 0:03:31]} 17. Nd2 {[%emt 0:06:53]} (17. cxb4 Bxb3 18. Qd3 (18. Bxh7+ $2 Kh8 $19) 18... Bxb4+ 19. Kf2 f5 $17) (17. Bxh7+ $2 Kh8 18. cxb4 Bxb3 $19) 17... Nc6 {[%emt 0:06:08]} 18. Be3 {[%emt 0:02:44]} ({Much worse is} 18. Bxh7+ Kh8 19. Be4 f5 20. Bxd5 Qxd5 $17) 18... f5 {[%emt 0:01:01]} 19. Bf3 {[%emt 0:00:37]} e5 {[%emt 0:01:06]} 20. Qc2 {[%emt 0:01:50]} Rc8 {[%emt 0:04:14][%cal Oc6b4]} 21. Bxd5+ {[%emt 0:00:40]} Qxd5 {[%emt 0:00:06]} 22. Qb3 {[%emt 0:00:04]} Qxb3 {[%emt 0:01:24]} 23. Nxb3 {[%emt 0:00:06]} Rfd8 {[%emt 0:08:20]} 24. Ke2 {[%emt 0:00:36]} exf4 {[%emt 0:00:17]} 25. Bxf4 {[%emt 0:03:04]} Re8 {[%emt 0:00:17] ...Ba3+ is the strong threat.} 26. Kd3 {[%emt 0:01:33]} Red8+ {[%emt 0:01:07]} 27. Ke2 {[%emt 0:00:20]} Re8 {[%emt 0:00:05]} 28. Kd3 {[%emt 0:00:15]} Red8+ {[%emt 0:00:06]} 29. Kc2 {[%emt 0:00:37]} Nb4+ {[%emt 0:02:41]} 30. Kb1 {[%emt 0:00:14]} Nc6 {[%emt 0:00:02]} 31. Kc2 {[%emt 0:04:40]} Nb4+ {[%emt 0:00:05]} 32. Kb1 {[%emt 0:00:04]} Nc6 {[%emt 0:00:04]} 33. Be3 {[%emt 0:01:21]} Rd5 {[%emt 0:00:14]} 34. Kc2 {[%emt 0:00:14]} Nb4+ {[%emt 0:00:11]} 35. Kb1 {[%emt 0:00:05]} Nc6 {[%emt 0:00:04]} 36. Ka2 {[%emt 0:01:08]} b5 {[%emt 0:03:19]} 37. Rhd1 {[%emt 0:01:20]} Rxd1 {[%emt 0:01:37]} 38. Rxd1 {[%emt 0:00:06]} bxa4 {[%emt 0:00:02]} 39. Nc5 {[%emt 0:00:12]} a3 {[%emt 0:00:45]} 40. b3 {[%emt 0:00:13]} Re8 {[%emt 0:03:04]} 41. Kxa3 {[%emt 0:02:50]} Bf6 {[%emt 0:01:27][%csl LRc3,LRe3]} 42. Bd4 {[%emt 0:01:57]} Rd8 {[%emt 0:00:56]} 43. Ne6 {[%emt 0:00:59]} Rd5 {[%emt 0:00:29]} 44. Ka4 {[%emt 0:00:22]} Kf7 {[%emt 0:00:25]} 45. Nc7 {[%emt 0:00:38]} Rd7 {[%emt 0:00:30]} 46. Nb5 {[%emt 0:00:07]} g5 {[%emt 0:00:34]} 47. Rd2 {[%emt 0:00:58]} Kg6 {[%emt 0:00:31]} 48. Be3 {[%emt 0:00:15] Prevents f4.} Rxd2 {[%emt 0:00:17]} 49. Bxd2 $11 {[%emt 0:00:03][%mdl 4096] Endgame KBN-KBN} Be5 {[%emt 0:00:03] Prevents Nc7.} 50. Na3 $1 {[%emt 0:00:36]} f4 {[%emt 0:00:04]} 51. Nc4 {[%emt 0:00:07]} Kf5 {[%emt 0:00:52]} (51... Bc7 $5 {[%cal Rf4g3]} 52. gxf4 (52. Kb5 Nd8 $15) 52... gxf4 $15) 52. Be1 {[%emt 0:01:27]} (52. Kb5 $11 {remains equal.} Na7+ 53. Ka6) 52... Bf6 {[%emt 0:01:01] And now ...f3 would win.} 53. Kb5 {[%emt 0:00:22]} Ne7 {[%emt 0:00:05]} 54. gxf4 {[%emt 0:00:25]} gxf4 {[%emt 0:00:06]} 55. Nxa5 {[%emt 0:00:13]} f3 $2 {[%emt 0:00:22] [#]} ({Black should play} 55... Ke4 $19 {Threatens to win with ...Ke3.} 56. Nb7 Ke3) 56. Kc5 {[%emt 0:01:03]} (56. Nc4 $11 {was the only way to keep the balance.}) 56... Ke4 {[%emt 0:00:58]} (56... Be5 $17 57. b4 Ke4) 57. Nc4 {[%emt 0:00:11] The position is equal.} Kd3 {[%emt 0:00:29]} 58. Nd2 {[%emt 0:00:31]} f2 {[%emt 0:01:09]} 59. Bxf2 {[%emt 0:00:05][%cal Of2d4] [#] Strongly threatening Bd4!} Kxd2 {[%emt 0:00:15]} 60. c4 {[%emt 0:00:11][%cal Bc3c4,Bc4c5,Bc5c6][%mdl 32]} Nf5 {[%emt 0:00:48]} 61. Kd5 {[%emt 0:00:55]} Kc3 {[%emt 0:00:34]} 62. c5 {[%emt 0:00:15]} Bd8 {[%emt 0:00:28]} (62... Kxb3 $2 63. Ke6 Nd4+ 64. Kxf6 $18) 63. Ke6 {[%emt 0:00:41]} Nd4+ {[%emt 0:00:28]} 64. Kd7 {[%emt 0:01:03]} Bf6 {[%emt 0:00:26]} 65. c6 {[%emt 0:00:30]} Nb5 {[%emt 0:00:40]} 66. Ke6 {[%emt 0:00:12]} Bd8 {[%emt 0:00:17]} 67. Kf7 {[%emt 0:00:15]} Kxb3 {[%emt 0:00:10]} 68. h4 {[%emt 0:00:07]} h5 {[%emt 0:00:11] Weighted Error Value: White=0.10 (very precise) /Black=0.12 (very precise)} 1/2-1/2

[Event "13th Chennai Open 2022"]
[Site "Chennai"]
[Date "2022.06.24"]
[Round "8.3"]
[White "Fedorov, Alexei"]
[Black "Abdyjapar, Asyl"]
[Result "1-0"]
[ECO "C54"]
[WhiteElo "2529"]
[BlackElo "2346"]
[Annotator "TA"]
[PlyCount "89"]
[EventDate "2022.06.19"]
[EventType "swiss"]
[EventCountry "IND"]
[SourceTitle "playchess.com"]
[Source "ChessBase"]
[SourceQuality "1"]
[TimeControl "5400+30"]

{[%evp 21,89,16,23,-4,0,-17,0,-30,-29,-60,-48,-40,-40,-66,-25,-25,-24,-30,-29,-85,-74,-158,-173,-170,-152,-163,-150,-154,-50,-56,-35,-37,-24,-116,58,56,414,409,416,416,409,401,389,386,479,465,486,491,998,994,954,696,677,486,510,527,515,519,648,540,816,562,539,586,637,535,704,681,705,682]} 1. e4 {[%emt 0:00:03]} e5 {[%emt 0:00:04]} 2. Bc4 {[%emt 0:00:13]} Nf6 {[%emt 0:00:56]} 3. d3 {[%emt 0:00:06]} Bc5 {[%emt 0:01:51]} 4. Nf3 {[%emt 0:00:23]} d6 {[%emt 0:00:10]} 5. c3 {[%emt 0:01:35]} O-O {[%emt 0:00:10]} 6. O-O {[%emt 0:00:15]} Nc6 {[%emt 0:00:19]} 7. h3 {[%emt 0:03:30]} a6 {[%emt 0:00:32]} 8. Bb3 {[%emt 0:01:02]} h6 {[%emt 0:00:30]} 9. Re1 {[%emt 0:01:00]} Be6 {[%emt 0:01:11]} 10. Bc2 {[%emt 0:08:38]} Ba7 {[%emt 0:03:19]} 11. Nbd2 {[%emt 0:19:33]} Re8 {[%emt 0:04:20]} 12. Nh2 {[%emt 0:02:21] C54: Giuoco Piano: 4 c3 Nf6, main lines with 5 d4 and 5 d3.} d5 {[%emt 0:04:35]} 13. Qf3 {[%emt 0:00:06]} Ne7 {[%emt 0:04:12][%cal Bc6e7,Be7g6,Bg6h4][%mdl 32]} 14. Ndf1 {[%emt 0:07:41][%cal Oc1h6] The position is equal.} Ng6 {[%emt 0:03:00] [#]} 15. Bd2 $146 {[%emt 0:02:03]} ({Predecessor:} 15. Ne3 c6 16. Nhg4 Nxg4 17. hxg4 Bxe3 18. Bxe3 d4 19. Bd2 b5 20. Rec1 c5 21. Bd1 {0-1 (108) Hansen,S (2577)-Leko,P (2737) Istanbul 2012}) 15... Nh4 {[%emt 0:06:53]} 16. Qe2 {[%emt 0:00:37]} Qd7 {[%emt 0:01:13][%cal Oe6h3]} 17. Ne3 {[%emt 0:02:21]} dxe4 {[%emt 0:05:09]} (17... Rad8 $5 {[%cal Rd5e4]} 18. Neg4 Nxg4 19. Nxg4 Ng6 $15) 18. dxe4 {[%emt 0:00:23]} Rad8 {[%emt 0:00:11]} 19. Red1 {[%emt 0:10:47]} Qc6 {[%emt 0:04:07]} 20. g3 {[%emt 0:02:34]} (20. Nhg4 $1 $11 Nxg4 21. hxg4) 20... Ng6 $17 {[%emt 0:03:48]} 21. Nf5 {[%emt 0:06:33]} (21. Neg4 $142) 21... Bc4 $36 {[%emt 0:08:50][%mdl 2048] White is under strong pressure.} 22. Qf3 {[%emt 0:08:10]} Qb5 {[%emt 0:01:20]} 23. Nxg7 {[%emt 0:01:26] [#]} Rxd2 $1 {[%emt 0:03:38]} (23... Kxg7 24. Bxh6+ Kxh6 25. Qxf6 Rxd1+ 26. Rxd1 $11) 24. Nxe8 {[%emt 0:03:05] [#]} Rxd1+ {[%emt 0:02:05]} (24... Rxf2 $1 $17 25. Nxf6+ Kf8 26. Nd7+ (26. Rd8+ $2 Ke7 $19) 26... Ke7 27. Qxf2 Bxf2+ 28. Kxf2 Qxb2) 25. Rxd1 $15 {[%emt 0:00:54]} Nxe8 {[%emt 0:00:10]} 26. Bb3 {[%emt 0:04:36]} Kg7 {[%emt 0:08:27]} 27. h4 {[%emt 0:03:24]} (27. Rd8 $11 {remains equal.} Bxb3 28. axb3) 27... Nf6 $2 {[%emt 0:01:18]} ({Black should play} 27... Bxb3 $17 28. axb3 Qxb3) 28. Ng4 $14 {[%emt 0:01:59][%cal Bh2g4,Bg4h6,Bh6f5][%mdl 32]} Nh7 {[%emt 0:02:35][%mdl 8192] This costs Black the game.} ({Better is} 28... Nxg4 $14 29. Qxg4 h5) 29. Bxc4 $18 {[%emt 0:04:02] Dancing on a razor blade.} Qxc4 {[%emt 0:00:08]} 30. Qf5 {[%emt 0:00:50] Rd7 is the strong threat.} Ngf8 {[%emt 0:04:28] Inhibits Rd7.} 31. Qxe5+ {[%emt 0:01:13]} f6 {[%emt 0:00:04]} 32. Qe7+ {[%emt 0:01:05]} Kh8 {[%emt 0:26:57]} 33. Nxh6 {[%emt 0:01:38] And now Nf5 would win. White is clearly winning.} ({Less strong is} 33. Rd8 Qg8 $14) 33... Qe2 {[%emt 0:00:00]} 34. Rf1 {[%emt 0:00:15]} Qh5 {[%emt 0:00:00]} (34... Qd3 $142) 35. Nf5 {[%emt 0:00:13][%csl Gf5][%cal Re7g7]} Qg4 {[%emt 0:00:00] Prevents Qg7+.} 36. Kg2 {[%emt 0:00:14]} Bb6 {[%emt 0:00:00]} 37. f3 {[%emt 0:00:12]} Qg8 {[%emt 0:00:00]} 38. Rd1 {[%emt 0:01:41] Hoping for Rd8.} Ng6 {[%emt 0:00:00]} 39. Qd8 {[%emt 0:00:15]} Ngf8 {[%emt 0:00:00]} 40. b3 {[%emt 0:00:24]} Qe6 {[%emt 0:00:00]} 41. Qe7 {[%emt 0:00:20]} Qxe7 {[%emt 0:00:00]} 42. Nxe7 {[%emt 0:00:03]} c6 {[%emt 0:00:00]} 43. f4 {[%emt 0:00:35]} Kg7 {[%emt 0:00:00]} 44. Nf5+ {[%emt 0:00:27]} Kg6 {[%emt 0:00:00]} 45. Nd6 {[%emt 0:00:12] Weighted Error Value: White=0.44/Black=0.48} 1-0

[Event "13th Chennai Open 2022"]
[Site "Chennai"]
[Date "2022.06.24"]
[Round "8.4"]
[White "Tran, Tuan Minh"]
[Black "Konguvel, Ponnuswamy"]
[Result "0-1"]
[ECO "E73"]
[WhiteElo "2533"]
[BlackElo "2331"]
[Annotator "TA"]
[PlyCount "130"]
[EventDate "2022.06.19"]
[EventType "swiss"]
[EventCountry "IND"]
[SourceTitle "playchess.com"]
[Source "ChessBase"]
[SourceQuality "1"]
[TimeControl "5400+30"]

{[%evp 13,130,53,35,46,59,59,59,59,59,65,68,68,68,70,72,79,67,27,43,46,46,18,18,22,20,16,6,17,25,18,31,-47,76,-49,27,-98,-119,-188,0,0,0,0,0,0,0,0,36,26,63,74,76,63,106,76,125,133,136,136,136,134,134,134,149,93,86,45,35,0,44,0,0,0,0,-135,-146,-129,-142,-185,-143,-189,0,-557,-555,-572,-557,-2472,-1329,-1216,-1038,-1013,-997,-947,-956,-922,-920,-29971,-29972,-29972,-29973,-29973,-29974,-29974,-29975,-29975,-29976,-29976,-29977,-29976,-29977,-29977,-29978,-29965,-12840,-29979,-29980,-29979,-29979,-29992,-29989]} 1. d4 {[%emt 0:01:44]} Nf6 {[%emt 0:00:16]} 2. c4 {[%emt 0:00:29]} g6 {[%emt 0:00:11]} 3. Nc3 {[%emt 0:00:08]} Bg7 {[%emt 0:00:23]} 4. e4 {[%emt 0:00:04]} d6 {[%emt 0:00:06]} 5. Be2 {[%emt 0:00:18]} O-O {[%emt 0:00:26]} 6. Be3 {[%emt 0:00:03]} e5 {[%emt 0:00:48]} 7. d5 {[%emt 0:00:05]} Na6 {[%emt 0:00:30]} 8. g4 {[%emt 0:00:06] E73: King's Indian: Averbakh Variation without 6...c5.} Nc5 {[%emt 0:00:55]} 9. f3 {[%emt 0:00:05]} h5 {[%emt 0:02:28]} 10. g5 {[%emt 0:00:41] White is slightly better.} Nh7 {[%emt 0:00:08]} 11. h4 {[%emt 0:00:22]} f6 {[%emt 0:00:17]} 12. gxf6 {[%emt 0:01:39]} Bxf6 {[%emt 0:00:08]} 13. Bf2 {[%emt 0:00:13]} Be7 {[%emt 0:01:15]} 14. Kd2 {[%emt 0:04:26]} c6 {[%emt 0:01:42] [#]} 15. b4 $146 {[%emt 0:02:46]} ({Predecessor:} 15. Kc2 cxd5 16. cxd5 Bd7 17. Rc1 b5 18. Bxc5 dxc5 19. Bxb5 Bxb5 20. Nxb5 Rb8 21. Nc3 {1-0 (41) Yilmaz,M (2630)-Khusnutdinov,R (2484) Chess.com INT 2021}) 15... Na6 {[%emt 0:09:14]} 16. a3 {[%emt 0:01:17]} Nc7 {[%emt 0:19:49]} 17. Nh3 {[%emt 0:09:48]} cxd5 {[%emt 0:03:58] Threatens to win with ...d4.} 18. cxd5 {[%emt 0:02:51]} Bxh4 {[%emt 0:10:18]} 19. Qg1 {[%emt 0:00:25][%csl LRa7,LRg6]} Kg7 {[%emt 0:04:35]} 20. Bxa7 {[%emt 0:04:53]} Bxh3 {[%emt 0:20:49] Dancing on a razor blade.} 21. Rxh3 {[%emt 0:00:08]} Bg5+ {[%emt 0:01:33]} 22. Kc2 {[%emt 0:00:49]} (22. Be3 $1 $14) 22... Qf6 {[%emt 0:02:13]} (22... Qc8 $1 $15 23. Rg3 Rf6) 23. Kb3 {[%emt 0:01:23] [#]} (23. Rd1 $16) 23... Bd2 {[%emt 0:03:12]} (23... Ne6 $1 $15 24. Rh1 Rxa7 25. dxe6 (25. Qxa7 Nd4+ 26. Kb2 Nxe2 $17) 25... Raa8) 24. Nb1 {[%emt 0:03:28]} (24. Rxh5 Ng5 25. Rxg5 Qxg5 26. Qxg5 Bxg5 $11) (24. f4 $11) 24... Ng5 $17 {[%emt 0:01:29][%cal Bh7g5,Bg5h3,Bh3f4][%mdl 32]} 25. Rg3 {[%emt 0:02:13]} (25. Rxh5 $17 {was necessary.} Nxf3 26. Qg4) 25... h4 $2 {[%emt 0:01:34]} ({Black should play} 25... Bf4 $1 $19 {[%cal Rf4g3]} 26. Rg2 h4) 26. Nxd2 $11 {[%emt 0:04:24]} hxg3 {[%emt 0:00:02]} 27. Be3 {[%emt 0:03:10]} Nh3 $1 {[%emt 0:00:01]} 28. Qxg3 {[%emt 0:00:05]} Nf4 {[%emt 0:00:03] Pair of Knights!} 29. Bf1 {[%emt 0:00:24]} Rh8 {[%emt 0:01:17]} 30. Rc1 {[%emt 0:01:50][%mdl 1024] White has compensation.} Ne8 {[%emt 0:02:06]} 31. a4 {[%emt 0:04:26][%cal Ba3a4,Ba4a5][%mdl 32]} Rh7 {[%emt 0:01:10]} 32. a5 {[%emt 0:01:17]} Kf8 {[%emt 0:01:20]} 33. Nc4 {[%emt 0:02:46]} Rc7 {[%emt 0:03:03]} (33... Rh1 $142) 34. Qg4 $16 {[%emt 0:02:29]} Kg7 {[%emt 0:01:00]} 35. Rc2 {[%emt 0:00:54]} Rf7 {[%emt 0:00:48]} 36. Nb6 {[%emt 0:03:58]} Rd8 {[%emt 0:00:06][%cal Ba8d8,Bd8h8,Bh8h2,Bh2h1,Bh1b1][%mdl 32]} 37. Bb5 {[%emt 0:00:11]} Qe7 {[%emt 0:02:28] Prevents Bd7.} (37... Nc7 $2 38. Nd7 Rdxd7 39. Bxd7 $18) 38. Qg1 {[%emt 0:17:40]} (38. Rh2 $142) 38... Nc7 {[%emt 0:00:47]} 39. Bc4 {[%emt 0:02:15]} Rh8 {[%emt 0:01:39]} 40. Rc3 {[%emt 0:00:19]} Qe8 {[%emt 0:00:51]} (40... Rh3 $5 {[%cal Rh3f3]}) 41. Qf1 {[%emt 0:00:21]} Rh2 {[%emt 0:00:18]} 42. b5 {[%emt 0:03:08]} ({Much worse is} 42. Rc2 Qh8 43. Bxf4 Rxf4 $17) 42... Qh8 {[%emt 0:00:05]} 43. Kb4 {[%emt 0:05:20]} (43. Qc1 $11) 43... Rh1 $1 $17 {[%emt 0:01:16] Black is more active.} 44. Qf2 {[%emt 0:00:06]} Rb1+ $1 {[%emt 0:00:04]} 45. Rb3 {[%emt 0:03:20]} Qh1 $36 {[%emt 0:00:21][%mdl 2048] Hoping for ...Rxb3+. Black has strong initiative.} 46. Nc8 {[%emt 0:10:00] [#]} (46. Qc2 $17 {was worth a try.} Rxb3+ 47. Bxb3) 46... Qd1 $2 {[%emt 0:00:04]} ({Better is} 46... Ne8 $1 $19 {aiming for ...Rxb3+.} 47. b6 Rxb3+ 48. Kxb3 Qh3) 47. Bxf4 $4 {[%emt 0:00:24][%mdl 8192]} (47. Qd2 $11 {and White stays safe.} Rxb3+ 48. Bxb3 Nd3+ 49. Kc4 Nb2+ 50. Kc3 (50. Qxb2 $2 Qf1+ 51. Kc3 Rxf3 $19) 50... Nxb5+ 51. Kxb2 Qxf3 52. Bc4) 47... Rxf4 $19 {[%emt 0:00:29]} 48. Nxd6 {[%emt 0:03:32] [#] Rxb1 is the strong threat.} Rxf3 $1 {[%emt 0:01:26]} 49. Qa2 {[%emt 0:01:39]} Rbxb3+ {[%emt 0:04:05]} 50. Bxb3 {[%emt 0:00:02]} Qd4+ {[%emt 0:00:49]} 51. Bc4 {[%emt 0:00:51]} Rf2 {[%emt 0:00:50]} 52. Qa3 {[%emt 0:00:26]} Rb2+ {[%emt 0:00:49]} ({Inferior is} 52... Rc2 53. Qd3 Qf2 54. Kb3 $11) 53. Ka4 {[%emt 0:00:00] [#]} Nxb5 $1 {[%emt 0:01:26][%mdl 512]} 54. Nf5+ {[%emt 0:00:47]} (54. Qxb2 Qxb2) 54... gxf5 {[%emt 0:00:00]} 55. Qe7+ {[%emt 0:00:46]} Kg6 {[%emt 0:00:00]} 56. Qe6+ {[%emt 0:00:39]} Kg5 {[%emt 0:00:00][%cal Rd4c4]} 57. Qxf5+ {[%emt 0:00:05]} Kh4 {[%emt 0:00:00][%cal Rd4c4]} 58. Qf6+ {[%emt 0:00:37]} Kg3 {[%emt 0:00:00][%cal Rd4c4]} 59. Qg5+ {[%emt 0:00:12]} Kf3 {[%emt 0:00:28][%cal Rd4c4]} 60. Qf5+ {[%emt 0:01:06]} Ke3 {[%emt 0:00:15][%cal Rd4c4]} 61. Qg5+ {[%emt 0:00:30]} Kxe4 {[%emt 0:01:05][%cal Rd4c4]} 62. Qh4+ {[%emt 0:00:15]} Ke3 {[%emt 0:01:00] ( -> ...Qd1+)} 63. Qe1+ {[%emt 0:00:05]} Kf3 {[%emt 0:00:20] Black mates.} 64. Qf1+ {[%emt 0:00:28]} Kg3 {[%emt 0:00:10]} 65. Qe1+ {[%emt 0:00:13]} Kh2 {[%emt 0:00:16] Weighted Error Value: White=0.49/Black=0.25 (precise)} 0-1

[Event "13th Chennai Open 2022"]
[Site "Chennai"]
[Date "2022.06.24"]
[Round "8.5"]
[White "Deepan Chakkravarthy J."]
[Black "Aaryan Varshney"]
[Result "1/2-1/2"]
[ECO "A30"]
[WhiteElo "2478"]
[BlackElo "2308"]
[Annotator "TA"]
[PlyCount "77"]
[EventDate "2022.06.19"]
[EventType "swiss"]
[EventCountry "IND"]
[SourceTitle "playchess.com"]
[Source "ChessBase"]
[SourceQuality "1"]
[TimeControl "5400+30"]

{[%evp 9,77,-8,-9,0,43,0,17,8,14,14,23,14,14,12,15,14,14,-29,-19,-16,-9,-7,-9,-6,-14,-16,-18,-31,-29,-21,-21,-39,-27,-47,-54,-61,-58,-64,-64,-66,-57,-95,-79,-97,-81,-83,-75,-85,-44,-45,-38,-42,-42,-29,-26,-45,-32,-49,-25,-25,-3,-41,-39,-44,0,-12,0,-44,0,-27]} 1. Nf3 {[%emt 0:07:11]} d5 {[%emt 0:00:13]} 2. g3 {[%emt 0:00:07]} c5 {[%emt 0:00:04]} 3. Bg2 {[%emt 0:00:04]} Nf6 {[%emt 0:00:11]} 4. c4 {[%emt 0:00:10]} Nc6 {[%emt 0:03:46]} 5. O-O {[%emt 0:01:26]} d4 {[%emt 0:09:23]} 6. e3 {[%emt 0:00:34] A30: Symmetrical English: Double Fianchetto and Hedgehog.} dxe3 {[%emt 0:01:19]} 7. fxe3 {[%emt 0:04:12]} e5 {[%emt 0:01:51] Against d4} 8. Nc3 {[%emt 0:01:36][%cal Od2d4]} Be7 {[%emt 0:02:24] [#]} 9. b3 $146 {[%emt 0:16:50]} ({Predecessor:} 9. Nh4 Be6 10. Nf5 Bxc4 11. Nxg7+ Kf8 12. Nf5 Bxf1 13. Qxf1 Rg8 14. d4 cxd4 15. exd4 Nxd4 {1-0 (49) Vasilev,S-Spasov,S (2172) ICCF email 2010}) 9... O-O {[%emt 0:02:03]} 10. Bb2 {[%emt 0:00:17][%cal Oc3d5]} Bg4 {[%emt 0:02:40]} 11. h3 {[%emt 0:10:42]} Bh5 {[%emt 0:05:37]} 12. g4 {[%emt 0:15:22]} Bg6 {[%emt 0:00:22]} 13. Nd5 {[%emt 0:03:37]} Nxd5 {[%emt 0:09:11]} 14. cxd5 {[%emt 0:00:02]} Qxd5 {[%emt 0:00:55] [#] Hoping for ...e4.} 15. Nxe5 {[%emt 0:00:05]} Be4 {[%emt 0:01:34]} 16. Bxe4 {[%emt 0:00:40]} Qxe4 {[%emt 0:00:08]} 17. Qf3 {[%emt 0:00:07]} (17. Rf4 {is interesting.} Qd5 18. Nxc6 Qxc6 19. Qf3) 17... Qxf3 {[%emt 0:01:20]} 18. Nxf3 {[%emt 0:00:02]} Rad8 {[%emt 0:01:17][%cal Ba8d8,Bd8d5,Bd5b5][%mdl 32]} 19. Bc3 {[%emt 0:00:45]} Rfe8 {[%emt 0:04:24]} 20. a3 {[%emt 0:01:26]} Rd5 {[%emt 0:03:55]} 21. b4 {[%emt 0:02:19]} cxb4 {[%emt 0:01:44]} 22. axb4 {[%emt 0:00:02]} a6 {[%emt 0:00:53][%cal Ba7a6,Ba6a5][%mdl 32]} 23. Rfb1 {[%emt 0:02:54]} Rb5 {[%emt 0:02:22]} 24. Ra4 {[%emt 0:04:11]} a5 {[%emt 0:14:33][%cal Ra5b4]} 25. Kf2 {[%emt 0:00:33]} Bxb4 {[%emt 0:05:44]} 26. Ke2 {[%emt 0:08:52]} Rc5 {[%emt 0:04:36]} 27. Bxb4 {[%emt 0:03:35]} Nxb4 {[%emt 0:00:29]} 28. Ne1 {[%emt 0:00:13]} h5 {[%emt 0:02:09]} 29. Nd3 {[%emt 0:01:22]} Nxd3 {[%emt 0:00:30]} 30. Kxd3 {[%emt 0:00:03]} hxg4 {[%emt 0:00:30]} 31. hxg4 $15 {[%emt 0:00:02][%mdl 4096] Endgame KRR-KRR} Re7 {[%emt 0:01:50]} 32. Rc4 {[%emt 0:04:35]} Rg5 {[%emt 0:06:53]} 33. Rb6 {[%emt 0:03:06]} g6 {[%emt 0:01:28]} 34. Ke2 {[%emt 0:00:10]} Rge5 {[%emt 0:01:03]} 35. Kf3 {[%emt 0:00:13]} R5e6 {[%emt 0:01:27]} 36. Rb5 {[%emt 0:02:13]} Re5 {[%emt 0:02:50]} 37. Rb6 {[%emt 0:00:23]} R5e6 {[%emt 0:00:31]} 38. Rb5 {[%emt 0:00:56]} Re5 {[%emt 0:00:18]} 39. Rb6 {[%emt 0:00:50] Weighted Error Value: White=0.09 (flawless) /Black=0.11 (very precise)} 1/2-1/2